bitfinex-derivatives/quotes_BNBF0:USTF0_20250303
["timestamp","ask_amount","ask_price","bid_price","bid_amount"]
[1740993626185,1.67223034,598.12,597.34,0.33481769]
[1740993626386,1.67223034,598.11,597.35,0.26782047]
[1740993626586,1.67223034,598.1,597.34,0.33481769]
[1740993626887,1.67223034,598.09,597.34,0.33481769]
[1740993627090,1.67223034,598.08,597.34,0.33481769]
[1740993627286,1.67223034,598.07,597.34,0.33481769]
[1740993627486,1.67223034,598.06,596.73,1.23647439]
[1740993627688,1.67223034,598.05,596.75,0.33514872]
[1740993627889,1.364,598.09,596.75,0.33514872]
[1740993627890,1.67223034,598.04,596.76,0.26788234]
[1740993628092,4.35093197,598.03,596.76,0.26788234]
[1740993628292,4.35093197,598.02,596.76,0.26788234]
[1740993628495,4.35093197,598.01,596.75,0.33514872]
[1740993628791,4.35093197,598.0,596.76,0.26793321]
[1740993628991,4.35093197,597.99,596.77,0.33513749]
[1740993629184,1.67343537,597.98,596.78,0.26793321]
[1740993629390,1.078,597.99,596.78,0.26793321]
[1740993629984,1.078,597.99,596.79,0.26793321]
[1740993630189,1.078,597.99,596.8,0.26793321]
[1740993630388,1.078,597.99,596.81,0.26793321]
[1740993630590,1.078,597.99,596.78,0.26793321]
[1740993630792,1.078,597.99,596.79,0.26793321]
[1740993630988,1.078,597.99,596.81,0.33511502]
[1740993631194,1.078,597.99,596.82,0.26793321]
[1740993631495,1.078,597.99,596.84,0.33509818]
[1740993631893,1.078,597.99,596.85,0.26793321]
[1740993632089,1.078,597.99,596.86,0.33508695]
[1740993632291,1.078,597.99,596.87,0.26793321]
[1740993632489,1.078,597.99,596.89,0.33507011]
[1740993632693,1.078,597.99,596.9,0.26793321]
[1740993633289,1.078,597.99,596.92,0.33505327]
[1740993633489,1.078,597.99,596.93,0.26780135]
[1740993634089,1.078,597.99,596.94,0.33504204]
[1740993634294,1.078,597.99,596.95,0.26780135]
[1740993634493,1.078,597.99,596.96,0.33503082]
[1740993634793,1.078,597.99,596.97,0.26780135]
[1740993634993,1.078,597.99,596.98,0.33501959]
[1740993635188,1.078,597.99,596.99,0.26780135]
[1740993636696,1.078,597.99,597.0,0.33500837]
[1740993636990,0.86,597.98,597.01,0.26780135]
[1740993637195,1.865,597.98,597.01,0.26780135]
[1740993637389,3.53793336,597.98,597.01,0.26780135]
[1740993637592,1.339,597.97,597.01,0.26780135]
[1740993637890,3.01193336,597.97,597.01,0.26780135]
[1740993638095,1.67293336,597.96,597.0,0.33500837]
[1740993638394,1.67293336,597.95,597.01,0.2679328]
[1740993638598,1.67293336,597.94,597.01,0.2679328]
[1740993638899,1.67293336,597.93,597.01,0.2679328]
[1740993639197,4.34975356,597.92,597.0,0.33500837]
[1740993639399,1.67293336,597.91,597.0,0.33500837]
[1740993639598,1.67293336,597.96,597.01,0.26790232]
[1740993639794,3.01193336,597.97,597.01,0.26790232]
[1740993640103,1.339,597.97,597.01,0.26790232]
[1740993640801,1.339,597.97,597.02,0.26790232]
[1740993641099,1.339,597.97,597.03,0.26790232]
[1740993641298,1.339,597.97,597.01,0.26790232]
[1740993641494,1.339,597.97,597.02,0.26790232]
[1740993641697,1.339,597.97,597.01,0.26790232]
[1740993641895,1.339,597.97,597.02,0.26790232]
[1740993642096,1.339,597.97,597.01,0.26790232]
[1740993642300,1.339,597.97,597.02,0.26790232]
[1740993642505,1.339,597.97,597.03,0.26790232]
[1740993642706,1.339,597.97,597.04,0.26790232]
[1740993643109,1.339,597.97,597.05,0.26790232]
[1740993643301,1.339,597.97,597.01,0.26790232]
[1740993643508,1.67297573,597.96,597.02,0.26790232]
[1740993643708,1.67297573,597.95,597.03,0.26790232]
[1740993643909,1.67297573,597.94,597.01,0.26790232]
[1740993644112,1.67297573,597.93,597.02,0.26790232]
[1740993644311,1.67297573,597.92,597.03,0.26790232]
[1740993644510,1.67297573,597.91,597.01,0.26790232]
[1740993644713,1.67297573,597.9,597.02,0.26790232]
[1740993645012,1.67297573,597.89,597.03,0.26790232]
[1740993645214,1.339,597.97,597.04,0.26790232]
[1740993645412,1.339,597.97,597.0,0.33500837]
[1740993645413,1.67306739,597.96,597.01,0.26790232]
[1740993645614,1.67306739,597.95,597.02,0.26790232]
[1740993645915,1.67306739,597.94,597.03,0.60289386]
[1740993646213,1.339,597.97,597.04,0.26781115]
[1740993646415,1.67288527,597.96,597.04,0.26781115]
[1740993646614,1.67288527,597.95,597.04,0.26781115]
[1740993646808,1.67288527,597.94,597.04,0.26781115]
[1740993647012,1.67288527,597.93,597.04,0.26781115]
[1740993647215,1.67299442,597.92,597.04,0.26781115]
[1740993647515,1.67290451,597.96,597.05,0.33498031]
[1740993647710,1.67290451,597.95,597.06,0.26781115]
[1740993647915,1.67290451,597.94,597.07,0.33496909]
[1740993648115,1.67312222,597.93,597.08,0.26781115]
[1740993648315,1.67312222,597.92,597.09,0.33495787]
[1740993648516,4.01599555,597.97,597.1,0.26781115]
[1740993648517,1.67312222,597.91,597.1,0.26781115]
[1740993648717,1.67312222,597.9,597.1,0.26781115]
[1740993648911,1.67312222,597.89,597.1,0.26781115]
[1740993649117,1.67305603,597.88,597.1,0.26781115]
[1740993649313,2.6768411,597.96,597.1,0.26781115]
[1740993649518,1.67306795,597.95,597.1,0.26781115]
[1740993649711,1.67306795,597.94,597.1,0.26781115]
[1740993649916,1.67306795,597.93,597.1,0.26781115]
[1740993650113,1.67306795,597.92,597.1,0.26781115]
[1740993650316,1.339,597.97,597.1,0.26781115]
[1740993650517,1.67295739,597.96,597.1,0.26781115]
[1740993650718,1.339,597.97,597.1,0.26781115]
[1740993651118,1.339,597.97,597.11,0.33494665]
[1740993651318,1.346,597.96,597.12,0.26781115]
[1740993651513,1.407,597.96,597.13,0.33493544]
[1740993651719,1.407,597.96,597.14,0.26781115]
[1740993652721,1.407,597.96,597.13,0.33493544]
[1740993652923,1.407,597.96,597.14,0.26774075]
[1740993653123,1.049,597.95,597.14,0.26774075]
[1740993653319,1.909,597.95,597.14,0.26774075]
[1740993653519,1.909,597.95,597.15,0.33492422]
[1740993653718,1.909,597.95,597.16,0.26774075]
[1740993654116,1.909,597.95,597.15,0.33492422]
[1740993654319,1.909,597.95,597.16,0.26779537]
[1740993655023,1.909,597.95,597.17,0.334913]
[1740993655217,1.909,597.95,597.18,0.26779537]
[1740993655419,1.909,597.95,597.19,0.33490179]
[1740993655617,1.909,597.95,597.2,0.26779537]
[1740993655819,2.974,597.95,597.21,0.33489057]
[1740993656021,2.974,597.95,597.22,0.26779537]
[1740993656922,2.974,597.95,597.23,0.33487935]
[1740993657123,2.974,597.95,597.24,0.26779537]
[1740993657319,4.204,597.95,597.25,0.26777412]
[1740993657523,4.204,597.95,597.24,0.26777412]
[1740993657719,4.204,597.95,597.25,0.26777412]
[1740993657920,4.204,597.95,597.26,0.26777412]
[1740993658119,4.204,597.95,597.27,0.26777412]
[1740993658323,4.204,597.95,597.28,0.26777412]
[1740993658520,4.204,597.95,597.27,0.33485693]
[1740993658727,4.204,597.95,597.28,0.26777412]
[1740993661528,4.204,597.95,597.29,0.26778947]
[1740993661721,4.204,597.95,597.3,0.26778947]
[1740993661923,4.204,597.95,597.31,0.26778947]
[1740993662325,4.204,597.95,597.32,0.26778947]
[1740993662521,4.204,597.95,597.33,0.26778947]
[1740993662830,4.204,597.95,597.34,0.26778947]
[1740993663228,4.204,597.95,597.35,0.26778947]
[1740993663429,4.204,597.95,597.28,0.26778947]
[1740993663624,4.204,597.95,597.29,0.26778947]
[1740993663825,4.204,597.95,597.28,0.26778947]
[1740993664125,4.204,597.95,597.29,0.60263518]
[1740993664326,4.204,597.95,597.3,0.26778947]
[1740993664726,4.204,597.95,597.31,0.26768234]
[1740993664927,4.204,597.95,597.3,0.26768234]
[1740993665121,4.204,597.95,597.31,0.26768234]
[1740993665327,4.204,597.95,597.32,0.26768234]
[1740993665523,4.204,597.95,597.33,0.26768234]
[1740993665723,4.204,597.95,597.3,0.26768234]
[1740993666026,4.204,597.95,597.31,0.60251684]
[1740993666224,4.204,597.95,597.31,0.3348345]
[1740993666425,4.204,597.95,597.32,0.26776586]
[1740993667423,5.194,597.95,597.32,0.26776586]
[1740993668833,1.67289124,597.94,597.32,0.26776586]
[1740993669025,5.194,597.95,597.32,0.26776586]
[1740993669230,1.67291745,597.94,597.32,0.26776586]
[1740993669528,1.67291745,597.93,597.32,0.26776586]
[1740993669726,1.67291745,597.93,597.31,0.3348345]
[1740993669727,1.67291745,597.92,597.31,0.3348345]
[1740993669929,1.67291745,597.91,597.31,0.3348345]
[1740993670131,1.67291745,597.9,597.31,0.3348345]
[1740993670526,4.34977799,597.89,597.31,0.3348345]
[1740993670725,4.34977799,597.88,596.86,1.23647439]
[1740993670928,4.34977799,597.87,596.87,0.60297996]
[1740993671128,4.34977799,597.86,596.88,0.60297434]
[1740993671330,4.34977799,597.86,596.86,1.23647439]
[1740993671331,1.67291745,597.85,596.89,0.60296873]
[1740993671632,1.67291745,597.84,596.9,0.60296311]
[1740993671827,1.67291745,597.83,596.91,0.6029575]
[1740993672029,1.67291745,597.82,596.92,0.60295189]
[1740993672231,1.67291745,597.81,596.93,0.60294628]
[1740993672437,1.67291745,597.8,596.94,0.60294066]
[1740993672632,1.67291745,597.79,596.95,0.26789862]
[1740993672833,1.67332245,597.78,596.96,0.33503082]
[1740993673032,1.67332245,597.77,596.97,0.26789862]
[1740993673227,1.67332245,597.76,596.97,0.26789862]
[1740993673528,0.861,597.76,596.98,0.33501959]
[1740993673728,0.861,597.76,596.99,0.26789862]
[1740993673935,0.861,597.76,597.0,0.33500837]
[1740993674130,0.861,597.76,597.01,0.26789862]
[1740993674336,0.861,597.76,597.0,0.33500837]
[1740993675734,0.861,597.76,597.01,0.26792262]
[1740993675931,0.861,597.76,597.0,0.33500837]
[1740993676433,0.861,597.76,597.01,0.26792107]
[1740993677631,1.219,597.75,597.01,0.26792107]
[1740993678035,1.219,597.75,597.0,0.33500837]
[1740993678233,1.67352703,597.74,597.0,0.33500837]
[1740993678434,1.67352703,597.73,597.0,0.33500837]
[1740993678634,1.67352703,597.72,597.0,0.33500837]
[1740993678836,1.67352703,597.71,597.0,0.33500837]
[1740993679039,1.67352703,597.7,597.0,0.33500837]
[1740993679241,1.67352703,597.69,597.0,0.33500837]
[1740993679441,1.67352703,597.68,597.0,0.33500837]
[1740993679643,1.74833372,597.71,596.42,1.23647439]
[1740993679644,1.67352703,597.67,596.42,1.23647439]
[1740993679837,1.67352703,597.66,596.44,0.33532291]
[1740993680039,1.67352703,597.65,596.45,0.26808014]
[1740993680340,1.67352703,597.64,596.45,0.26808014]
[1740993680541,1.67352703,597.63,596.44,0.33532291]
[1740993680742,4.35170186,597.62,596.45,0.26813395]
[1740993680941,1.6289165,597.59,596.45,0.26813395]
[1740993681145,1.67352703,597.58,596.45,0.26813395]
[1740993681442,1.67352703,597.57,596.45,0.26813395]
[1740993681638,1.67352703,597.56,596.47,0.33530605]
[1740993681941,1.67352703,597.55,596.48,0.26813395]
[1740993682141,1.67352703,597.54,596.48,0.26813395]
[1740993682337,1.67352703,597.53,596.48,0.26813395]
[1740993682537,1.67462791,597.52,596.48,0.26813395]
[1740993682739,1.67462791,597.51,596.48,0.26813395]
[1740993682937,1.67462791,597.5,596.48,0.26813395]
[1740993683134,1.67462791,597.49,596.48,0.26813395]
[1740993683339,1.67462791,597.48,596.49,0.3352948]
[1740993683636,1.67462791,597.47,596.49,0.3352948]
[1740993683839,1.67462791,597.46,596.5,0.26813395]
[1740993684035,1.67462791,597.45,596.5,0.26813849]
[1740993684240,1.67473536,597.44,596.5,0.26813849]
[1740993684444,1.67473536,597.43,596.5,0.26813849]
[1740993684742,1.67473536,597.42,596.5,0.26813849]
[1740993684943,1.67473536,597.41,596.5,0.26813849]
[1740993685143,1.67473536,597.4,596.51,0.33528356]
[1740993685444,1.67473536,597.39,596.52,0.26813849]
[1740993685644,1.67473536,597.38,596.53,0.33527232]
[1740993685846,1.67473536,597.37,596.54,0.26813849]
[1740993686040,1.67473536,597.36,596.54,0.26813849]
[1740993686246,1.67473536,597.35,596.54,0.26813849]
[1740993686547,1.67473536,597.34,596.55,0.26816576]
[1740993686844,1.67473536,597.33,596.53,0.33527232]
[1740993687045,1.275,597.35,596.53,0.33527232]
[1740993687046,1.67473536,597.32,596.53,0.33527232]
[1740993687241,1.67473536,597.31,596.53,0.33527232]
[1740993687545,4.35572627,597.3,596.53,0.33527232]
[1740993687747,4.35572627,597.29,596.53,0.33527232]
[1740993687948,4.35572627,597.28,596.53,0.33527232]
[1740993688145,4.35572627,597.27,596.53,0.33527232]
[1740993688345,4.35572627,597.26,596.53,0.33527232]
[1740993688545,4.35572627,597.25,596.53,0.33527232]
[1740993688745,4.35572627,597.24,596.53,0.33527232]
[1740993688945,4.35572627,597.23,595.67,1.23647439]
[1740993689143,4.35572627,597.22,595.69,0.3357451]
[1740993689347,4.35572627,597.21,595.7,0.2682756]
[1740993689544,1.67527933,597.2,595.71,0.26828518]
[1740993689743,1.67558763,597.19,595.7,0.26828518]
[1740993689949,1.67558763,597.18,595.71,0.26828518]
[1740993690147,1.67558763,597.18,595.69,0.3357451]
[1740993690148,1.67558763,597.17,595.7,0.26828518]
[1740993690348,1.67558763,597.16,595.72,0.26828518]
[1740993690546,1.67558763,597.15,595.73,0.26828518]
[1740993690750,1.74995286,597.22,595.74,0.26828518]
[1740993690751,1.67558763,597.14,595.74,0.26828518]
[1740993690948,1.67558763,597.13,595.7,0.26828518]
[1740993691145,1.67558763,597.12,595.71,0.26828518]
[1740993691347,1.67558763,597.11,595.72,0.26828518]
[1740993691549,1.67558763,597.1,595.7,0.26828518]
[1740993691844,1.67558763,597.09,595.69,0.3357451]
[1740993692048,1.67558763,597.08,595.7,0.26834851]
[1740993692350,1.67558763,597.07,595.7,0.26834851]
[1740993692649,4.35652784,597.06,595.7,0.26834851]
[1740993692850,1.75006286,597.14,595.7,0.26834851]
[1740993692851,4.35652784,597.05,595.7,0.26834851]
[1740993693046,4.35652784,597.04,595.7,0.26834851]
[1740993693252,4.35652784,597.03,595.7,0.26834851]
[1740993693445,4.35652784,597.02,595.71,0.26840378]
[1740993693644,4.35652784,597.01,595.72,0.26840378]
[1740993693845,4.35652784,597.0,595.7,0.26840378]
[1740993694046,4.35652784,596.99,595.71,0.26840378]
[1740993694246,4.35652784,596.98,595.72,0.26840378]
[1740993694554,1.67558763,596.97,595.73,0.26840378]
[1740993694754,1.67558763,596.96,595.74,0.26840378]
[1740993695053,1.66972683,596.95,595.74,0.26840378]
[1740993695254,0.999,596.97,595.75,0.26830465]
[1740993695454,1.66876199,596.96,595.76,0.26830465]
[1740993695651,0.999,596.97,595.7,0.26830465]
[1740993695856,1.66829409,596.96,595.71,0.26830465]
[1740993696056,0.999,596.97,595.7,0.26830465]
[1740993696057,1.66829409,596.95,595.7,0.26830465]
[1740993696356,0.999,596.97,595.72,0.33572819]
[1740993696552,1.593,596.95,595.73,0.26831261]
[1740993696858,1.66829409,596.94,595.73,0.26831261]
[1740993697056,1.66829409,596.93,595.75,0.33571128]
[1740993697356,1.593,596.95,595.76,0.26831261]
[1740993698454,3.25895252,596.95,595.76,0.26831261]
[1740993698650,1.66595252,596.94,595.76,0.26831261]
[1740993698851,1.66595252,596.94,595.78,0.33569438]
[1740993699159,1.66595252,596.93,595.79,0.26831261]
[1740993699456,1.66595252,596.92,595.81,0.33567748]
[1740993699758,1.66595252,596.91,595.82,0.26831261]
[1740993699955,1.66595252,596.9,595.84,0.33566058]
[1740993700155,1.66595252,596.89,595.85,0.26831261]
[1740993700352,1.66595252,596.88,595.85,0.26831261]
[1740993700551,1.66595252,596.87,595.85,0.26831261]
[1740993700756,1.66595252,596.86,595.85,0.26831261]
[1740993700953,1.66595252,596.85,595.85,0.26831261]
[1740993701159,1.66595252,596.84,595.85,0.26831261]
[1740993701358,1.66595252,596.83,595.85,0.26831261]
[1740993701661,1.66595252,596.82,595.85,0.26831261]
[1740993701858,1.66595252,596.81,595.85,0.26831261]
[1740993702057,1.66595252,596.8,595.85,0.26831261]
[1740993702258,1.66595252,596.79,595.85,0.26831261]
[1740993702455,1.66595252,596.78,595.85,0.26831261]
[1740993702659,1.66595252,596.77,595.85,0.26831261]
[1740993702859,1.66595252,596.76,595.85,0.26831261]
[1740993703056,1.66595252,596.75,595.85,0.26831261]
[1740993703259,1.66032901,596.87,595.85,0.26831261]
[1740993703460,1.66032901,596.86,595.85,0.26831261]
[1740993703661,1.66032901,596.85,595.85,0.26831261]
[1740993703960,1.66032901,596.84,595.85,0.26831261]
[1740993704161,1.66032901,596.87,595.85,0.26831261]
[1740993704355,1.66032901,596.86,595.86,0.2683678]
[1740993704556,1.66032901,596.85,595.87,0.60401148]
[1740993704763,1.66032901,596.84,595.88,0.2683678]
[1740993704961,1.66032901,596.83,595.88,0.2683678]
[1740993705161,1.66032901,596.82,595.88,0.2683678]
[1740993705357,1.66033875,596.81,595.89,0.33563241]
[1740993705561,0.062,596.85,595.9,0.2683678]
[1740993705757,1.359,596.8,595.91,0.33562115]
[1740993705963,1.359,596.8,595.92,0.2683678]
[1740993706159,1.359,596.8,595.93,0.33560988]
[1740993706563,1.66012588,596.79,595.93,0.33560988]
[1740993706766,1.359,596.8,595.93,0.33560988]
[1740993706964,1.66067288,596.79,595.93,0.33560988]
[1740993707158,1.66067288,596.78,595.93,0.33560988]
[1740993707364,1.359,596.8,595.93,0.33560988]
[1740993707559,1.66025269,596.79,595.93,0.33560988]
[1740993707760,1.66025269,596.78,595.94,0.26838969]
[1740993707959,1.66025269,596.77,595.95,0.33559862]
[1740993708266,1.65965169,596.79,595.96,0.26838969]
[1740993708467,1.65965169,596.78,595.96,0.26838969]
[1740993708761,1.65965169,596.77,595.96,0.26838969]
[1740993708963,1.65965169,596.76,595.96,0.26838969]
[1740993709159,1.65965169,596.75,595.96,0.26838969]
[1740993709364,1.359,596.8,595.96,0.26838969]
[1740993709365,1.65965169,596.74,595.96,0.26838969]
[1740993709667,1.65846058,596.73,595.96,0.26838969]
[1740993709866,1.65846058,596.79,595.96,0.26838969]
[1740993710068,1.65846058,596.78,595.96,0.26838969]
[1740993710367,1.056,596.77,595.97,0.33558736]
[1740993710562,1.056,596.77,595.98,0.26838856]
[1740993711160,1.65836501,596.76,595.98,0.26838856]
[1740993711364,1.056,596.77,595.98,0.26838856]
[1740993711764,1.65788825,596.76,595.98,0.26838856]
[1740993711966,1.056,596.77,595.97,0.33558736]
[1740993711967,1.65788825,596.75,595.97,0.33558736]
[1740993712166,1.65788825,596.74,595.98,0.26846762]
[1740993712367,1.65788825,596.73,595.98,0.26846762]
[1740993712562,1.65788825,596.72,595.98,0.26846762]
[1740993712771,1.65788825,596.71,595.98,0.26846762]
[1740993712970,1.65788825,596.7,595.98,0.26846762]
[1740993713170,1.65788825,596.69,595.98,0.26846762]
[1740993713370,1.65788825,596.68,595.97,0.33558736]
[1740993713670,1.143,596.71,595.97,0.33558736]
[1740993713671,1.65788825,596.67,595.97,0.33558736]
[1740993713871,1.65788825,596.66,595.97,0.33558736]
[1740993714173,1.65788825,596.7,595.97,0.33558736]
[1740993714373,1.143,596.71,595.98,0.2684591]
[1740993715973,0.863,596.7,595.98,0.2684591]
[1740993717372,0.863,596.7,595.99,0.3355761]
[1740993717574,0.863,596.7,596.0,0.2684591]
[1740993718077,0.863,596.7,596.01,0.33556483]
[1740993718278,0.863,596.7,596.02,0.2683595]
[1740993718478,0.863,596.7,596.03,0.33555357]
[1740993718680,0.863,596.7,596.04,0.2683595]
[1740993719883,1.808,596.7,596.05,0.26836146]
[1740993720082,1.808,596.7,596.03,0.33555357]
[1740993720083,1.808,596.7,596.04,0.26836146]
[1740993721076,1.66043705,596.69,596.04,0.26836146]
[1740993721278,1.808,596.7,596.04,0.26836146]
[1740993722286,1.6622227,596.69,596.04,0.26836146]
[1740993722482,1.6622227,596.68,596.04,0.26836146]
[1740993722687,1.808,596.7,596.04,0.26836146]
[1740993722887,1.662174,596.69,596.04,0.26836146]
[1740993723087,1.808,596.7,596.04,0.26836146]
[1740993723287,1.66350974,596.69,596.04,0.26836146]
[1740993723485,1.808,596.7,596.04,0.26836146]
[1740993724080,1.808,596.7,596.05,0.26834522]
[1740993724284,1.808,596.7,596.06,0.60388191]
[1740993724489,1.808,596.7,596.07,0.60387628]
[1740993724687,1.808,596.7,596.08,0.26834522]
[1740993725586,2.965,596.7,596.08,0.26834522]
[1740993725983,4.049,596.7,596.09,0.3355198]
[1740993726183,4.049,596.7,596.1,0.26834522]
[1740993727282,4.049,596.7,596.11,0.26833529]
[1740993727487,4.049,596.7,596.1,0.26833529]
[1740993727682,4.049,596.7,596.11,0.26833529]
[1740993727882,4.049,596.7,596.1,0.26833529]
[1740993728086,4.049,596.7,596.11,0.26833529]
[1740993728286,4.049,596.7,596.12,0.26833529]
[1740993728485,4.049,596.7,596.1,0.26833529]
[1740993728686,1.67029976,596.69,596.11,0.26833529]
[1740993728890,1.67029976,596.68,596.09,0.3355198]
[1740993729090,4.34215222,596.67,596.09,0.3355198]
[1740993729290,4.34215222,596.66,596.09,0.3355198]
[1740993729491,1.67029976,596.65,595.66,1.23647439]
[1740993729685,1.67029976,596.64,595.67,0.60419596]
[1740993729989,1.068,596.69,595.69,0.3357451]
[1740993730185,1.068,596.69,595.7,0.26843959]
[1740993730186,1.67125734,596.68,595.7,0.26843959]
[1740993730391,4.34445083,596.67,595.7,0.26843959]
[1740993730684,4.34445083,596.66,595.7,0.26843959]
[1740993730991,4.34445083,596.65,595.7,0.26843959]
[1740993731187,4.34445083,596.64,595.7,0.26843959]
[1740993731386,4.34445083,596.63,595.7,0.26843959]
[1740993731692,4.34445083,596.62,595.7,0.26843959]
[1740993731892,4.34445083,596.61,595.7,0.26843959]
[1740993732190,4.34445083,596.6,595.7,0.26843959]
[1740993732385,4.34445083,596.59,595.7,0.26843959]
[1740993732590,4.34445083,596.58,595.7,0.26843959]
[1740993732794,4.34445083,596.57,595.7,0.26843959]
[1740993732990,1.068,596.69,595.7,0.26843959]
[1740993732991,4.34445083,596.56,595.7,0.26843959]
[1740993733194,4.34445083,596.55,595.7,0.26843959]
[1740993733396,4.34445083,596.54,595.7,0.26843959]
[1740993733586,4.34445083,596.53,595.69,0.3357451]
[1740993733790,4.34445083,596.52,595.69,0.3357451]
[1740993733991,4.34445083,596.51,595.69,0.3357451]
[1740993734191,4.34445083,596.5,595.69,0.3357451]
[1740993734394,4.34445083,596.49,595.69,0.3357451]
[1740993734595,4.34445083,596.48,595.07,1.23647439]
[1740993734790,4.34445083,596.47,595.08,0.26865903]
[1740993735090,4.34445083,596.46,595.1,0.33607797]
[1740993735291,4.34445083,596.45,595.11,0.26865741]
[1740993735497,1.67125734,596.44,595.11,0.26865741]
[1740993735795,1.169,596.45,595.12,0.26865741]
[1740993735995,0.063,596.44,595.13,0.26865741]
[1740993736296,0.063,596.44,595.14,0.26865741]
[1740993736491,0.063,596.44,595.1,0.33607797]
[1740993736492,0.063,596.44,595.15,0.26865741]
[1740993736693,0.063,596.44,595.16,0.26865741]
[1740993736894,0.063,596.44,595.17,0.26865741]
[1740993737091,0.063,596.44,595.18,0.26865741]
[1740993737289,0.063,596.44,595.19,0.26865741]
[1740993737492,0.063,596.44,595.2,0.26865741]
[1740993737693,0.063,596.44,595.21,0.26865741]
[1740993737996,0.063,596.44,595.22,0.26865741]
[1740993738192,0.063,596.44,595.23,0.26847159]
[1740993738392,0.063,596.44,595.24,0.26847159]
[1740993738689,0.063,596.44,595.25,0.26847159]
[1740993738894,0.063,596.44,595.26,0.26847159]
[1740993739089,1.367,596.44,595.27,0.26847159]
[1740993739291,1.367,596.44,595.28,0.26847159]
[1740993739488,1.367,596.44,595.36,1.23647439]
[1740993739694,1.367,596.44,595.37,0.26847159]
[1740993739895,3.016,596.44,595.38,0.26843021]
[1740993740195,3.857,596.44,595.39,0.26843021]
[1740993740394,3.857,596.44,595.4,0.26843021]
[1740993740594,3.857,596.44,595.41,0.26843021]
[1740993740790,3.857,596.44,595.42,0.26843021]
[1740993740990,3.857,596.44,595.43,0.26843021]
[1740993741195,3.857,596.44,595.37,0.26843021]
[1740993741495,3.857,596.44,595.38,0.26843021]
[1740993741697,3.857,596.44,595.37,0.26843021]
[1740993741897,3.857,596.44,595.38,0.26843021]
[1740993742089,3.857,596.44,595.39,0.26843021]
[1740993742290,3.857,596.44,595.37,0.26843021]
[1740993742496,3.857,596.44,595.38,0.26843021]
[1740993742694,3.857,596.44,595.39,0.26843021]
[1740993742890,3.857,596.44,595.4,0.26843021]
[1740993743091,3.857,596.44,595.41,0.26843021]
[1740993743291,3.857,596.44,595.42,0.26843021]
[1740993743490,1.67722252,596.43,595.39,0.26843021]
[1740993743697,1.67722252,596.42,595.4,0.26843021]
[1740993743896,1.67722252,596.41,595.41,0.26843021]
[1740993744091,1.67722252,596.4,595.42,0.26843021]
[1740993744402,1.67722252,596.39,595.43,0.26843021]
[1740993744698,1.67722252,596.38,595.44,0.26843021]
[1740993744997,3.857,596.44,595.45,0.26843021]
[1740993745298,3.857,596.44,595.46,0.26843021]
[1740993745497,1.67718545,596.43,595.47,0.26843021]
[1740993745698,1.67718545,596.42,595.11,0.26843021]
[1740993745896,1.67718545,596.41,595.12,0.26843021]
[1740993746096,1.67718545,596.4,595.13,0.26861027]
[1740993746296,1.67718545,596.43,595.14,0.26861027]
[1740993746498,3.857,596.44,595.1,1.23647439]
[1740993746700,3.857,596.44,595.11,0.2685762]
[1740993746901,3.857,596.44,595.12,0.2685762]
[1740993747198,3.857,596.44,595.13,0.2685762]
[1740993747593,3.857,596.44,595.25,1.23647439]
[1740993747796,3.857,596.44,595.26,0.2685762]
[1740993747993,3.857,596.44,595.27,0.2685762]
[1740993748197,3.857,596.44,595.28,0.2685762]
[1740993748496,3.857,596.44,595.29,0.2685762]
[1740993748695,3.857,596.44,595.3,0.2685762]
[1740993748901,3.857,596.44,595.31,0.2685762]
[1740993749095,3.857,596.44,595.26,0.2685762]
[1740993749294,5.053,596.44,595.39,1.23647439]
[1740993749502,5.053,596.44,595.4,0.2685762]
[1740993750900,5.923,596.44,595.4,0.2685762]
[1740993751500,5.923,596.44,595.41,0.2685762]
[1740993751696,5.923,596.44,595.42,0.2685762]
[1740993751901,5.923,596.44,595.16,0.2685762]
[1740993752103,5.923,596.44,595.17,0.2685762]
[1740993752303,5.923,596.44,595.15,1.23647439]
[1740993752504,5.923,596.44,595.16,0.26842272]
[1740993752897,5.923,596.44,595.17,0.26842272]
[1740993753101,5.923,596.44,595.18,0.26842272]
[1740993753296,5.923,596.44,595.19,0.26842272]
[1740993753498,5.923,596.44,595.36,1.23647439]
[1740993753804,5.923,596.44,595.37,0.26842272]
[1740993754005,5.923,596.44,595.38,0.26843271]
[1740993754202,5.923,596.44,595.39,0.26843271]
[1740993754503,5.923,596.44,595.4,0.26843271]
[1740993754704,5.923,596.44,595.41,0.26843271]